[Event "84th Tata Steel Masters 2022"]
[Site "Wijk aan Zee"]
[Date "2022.01.29"]
[Round "12.7"]
[White "Dubov, Daniil"]
[Black "Praggnanandhaa R"]
[Result "0-1"]
[WhiteElo "2720"]
[BlackElo "2612"]
[PlyCount "86"]
[EventDate "2022.01.15"]
[EventType "tourn"]
[EventCountry "NED"]
[TimeControl "15+10"]
[WhiteClock "0:01:45"]
[BlackClock "0:01:58"]

1. d4 {[%emt 0:00:00]} Nf6 {[%emt 0:00:00]} 2. c4 {[%emt 0:00:00]} c5 {[%emt 0:00:00]} 3. d5 {[%emt 0:00:00]} e6 {[%emt 0:00:00]} 4. Nc3 {[%emt 0:00:00]} exd5 {[%emt 0:00:00]} 5. cxd5 {[%emt 0:00:00]} d6 {[%emt 0:00:00]} 6. g3 {[%emt 0:00:00]} g6 {[%emt 0:00:00]} 7. Bg2 {[%emt 0:00:00]} Bg7 {[%emt 0:00:00]} 8. e4 {[%emt 0:00:00]} O-O {[%emt 0:00:00]} 9. Nge2 {[%emt 0:00:00]} a6 {[%emt 0:00:00]} 10. a4 {[%emt 0:00:00]} Qc7 {[%emt 0:00:00]} 11. O-O {[%emt 0:00:00]} Nbd7 {[%emt 0:00:00]} 12. h3 {[%emt 0:00:00]} Rb8 {[%emt 0:00:00]} 13. a5 {[%emt 0:00:00]} Re8 {[%emt 0:00:00]} 14. Qc2 {[%emt 0:00:00]} b5 {[%emt 0:00:00]} 15. axb6 {[%emt 0:00:00]} Qxb6 {[%emt 0:00:00]} 16. Rb1 {[%emt 0:00:00]} Qb3 {[%emt 0:00:00]} 17. Qxb3 {[%emt 0:00:00]} Rxb3 {[%emt 0:00:00]} 18. Bf4 {[%emt 0:00:00]} Ne5 {[%emt 0:00:00]} 19. Nc1 {[%emt 0:00:00]} Rb8 {[%emt 0:00:00]} 20. Rd1 {[%emt 0:00:00]} Nfd7 {[%emt 0:00:00]} 21. Nd3 {[%emt 0:00:00]} Nxd3 {[%emt 0:00:00]} 22. Rxd3 {[%emt 0:00:00]} Ne5 {[%emt 0:00:00]} 23. Rdd1 {[%emt 0:00:00]} h6 {[%emt 0:00:00]} 24. Bf1 {[%emt 0:00:00]} g5 {[%emt 0:00:00]} 25. Be3 {[%emt 0:00:00]} Nf3+ {[%emt 0:00:00]} 26. Kg2 {[%emt 0:00:00]} Nd4 {[%emt 0:00:00]} 27. f3 {[%emt 0:00:05]} Nc2 {[%emt 0:00:00]} 28. Bf2 {[%emt 0:00:14]} Bd4 {[%emt 0:00:00]} 29. Bxd4 {[%emt 0:00:30]} cxd4 {[%emt 0:00:00]} 30. Rdc1 {[%emt 0:00:50]} Ne3+ {[%emt 0:00:00]} 31. Kf2 {[%emt 0:00:05]} Nxf1 {[%emt 0:00:00]} 32. Kxf1 {[%emt 0:00:58]} dxc3 {[%emt 0:00:15]} 33. Rxc3 {[%emt 0:00:03]} Bxh3+ {[%emt 0:00:18]} 34. Kf2 {[%emt 0:00:05]} Rec8 {[%emt 0:00:28]} 35. Ra3 {[%emt 0:00:05]} Rc2+ {[%emt 0:00:06]} 36. Ke3 {[%emt 0:00:06]} Bc8 {[%emt 0:00:13]} 37. b4 {[%emt 0:00:10]} Rc4 {[%emt 0:00:30]} 38. Rab3 {[%emt 0:00:14]} Bd7 {[%emt 0:00:29]} 39. g4 {[%emt 0:00:27]} Rc2 {[%emt 0:00:54]} 40. Kd3 {[%emt 0:00:09]} Rbc8 {[%emt 0:00:18]} 41. e5 {[%emt 0:01:06]} Bb5+ {[%emt 0:00:46]} 42. Ke4 {[%emt 0:00:11]} Re2+ {[%emt 0:01:00]} 43. Re3 {[%emt 0:00:09]} Rc4+ {[%emt 0:00:23]} 0-1